[Event "December 12 Late 2023"]
[Site "https://www.chess.com"]
[Date "2023.12.12"]
[Round "1"]
[White "Curtis, John"]
[Black "Espinoza Villanueva, Rodrigo"]
[Result "0-1"]
[Board "134"]
[TimeControl "180+1"]
[WhiteFideId "3200256"]
[BlackFideId "5140188"]
[WhiteElo "2204"]
[BlackElo "2564"]
[WhiteTeam "AUS"]
[BlackTeam "MEX"]
[WhiteClock "0:00:13"]
[BlackClock "0:00:44"]

1. e4 {[%clk 0:02:55]}  c5 {[%clk 0:02:58]} 2. Nf3 {[%clk 0:02:55]}  Nc6 {[%clk 0:02:54]} 3. d4 {[%clk 0:02:54]}  cxd4 {[%clk 0:02:55]} 4. Nxd4 {[%clk 0:02:54]}  Nf6 {[%clk 0:02:54]} 5. Nc3 {[%clk 0:02:54]}  d6 {[%clk 0:02:54]} 6. Be2 {[%clk 0:02:47]}  e5 {[%clk 0:02:51]} 7. Nb3 {[%clk 0:02:43]}  Be6 {[%clk 0:02:49]} 8. O-O {[%clk 0:02:42]}  Be7 {[%clk 0:02:49]} 9. Kh1 {[%clk 0:02:40]}  h5 {[%clk 0:02:45]} 10. Bg5 {[%clk 0:02:30]}  a5 {[%clk 0:02:38]} 11. Bxf6 {[%clk 0:02:28]}  Bxf6 {[%clk 0:02:36]} 12. Bb5 {[%clk 0:02:19]}  Rc8 {[%clk 0:02:22]} 13. Nd5 {[%clk 0:02:14]}  Bg5 {[%clk 0:02:20]} 14. Qe1 {[%clk 0:01:58]}  O-O {[%clk 0:02:09]} 15. c3 {[%clk 0:01:31]}  h4 {[%clk 0:02:01]} 16. Qe2 {[%clk 0:01:18]}  Bxd5 {[%clk 0:01:51]} 17. exd5 {[%clk 0:01:17]}  Ne7 {[%clk 0:01:52]} 18. a4 {[%clk 0:01:15]}  f5 {[%clk 0:01:50]} 19. Qh5 {[%clk 0:01:10]}  Nxd5 {[%clk 0:01:42]} 20. Rad1 {[%clk 0:01:07]}  Nf4 {[%clk 0:01:40]} 21. Qf3 {[%clk 0:01:01]}  Qe7 {[%clk 0:01:39]} 22. g3 {[%clk 0:00:58]}  e4 {[%clk 0:01:31]} 23. Qe3 {[%clk 0:00:57]}  Nh3 {[%clk 0:01:29]} 24. Qd4 {[%clk 0:00:54]}  Rcd8 {[%clk 0:01:17]} 25. Nxa5 {[%clk 0:00:53]}  d5 {[%clk 0:01:15]} 26. Qb6 {[%clk 0:00:47]}  f4 {[%clk 0:01:10]} 27. Qxb7 {[%clk 0:00:45]}  Qe6 {[%clk 0:01:10]} 28. Nc6 {[%clk 0:00:38]}  Qg4 {[%clk 0:01:03]} 29. Nd4 {[%clk 0:00:37]}  hxg3 {[%clk 0:00:57]} 30. fxg3 {[%clk 0:00:31]}  fxg3 {[%clk 0:00:53]} 31. Rxf8+ {[%clk 0:00:21]}  Rxf8 {[%clk 0:00:53]} 32. Qxd5+ {[%clk 0:00:21]}  Kh8 {[%clk 0:00:52]} 33. Rg1 {[%clk 0:00:18]}  Nxg1 {[%clk 0:00:44]} 34. Kxg1 {[%clk 0:00:13]}  gxh2+ {[%clk 0:00:44]} 35. Kxh2 {[%clk 0:00:12]}  Rf2+ {[%clk 0:00:44]} 36. Kh1 {[%clk 0:00:13]}  Qg2# {[%clk 0:00:44]} 0-1

[Event "December 12 Late 2023"]
[Site "https://www.chess.com"]
[Date "2023.12.12"]
[Round "1"]
[White "Play, Gilles"]
[Black "Bullen, Alex"]
[Result "0-1"]
[Board "135"]
[TimeControl "180+1"]
[WhiteFideId "45130892"]
[BlackFideId "1801627"]
[WhiteElo "2561"]
[BlackElo "2202"]
[WhiteTeam "FRA"]
[BlackTeam "WLS"]
[WhiteClock "0:00:42"]
[BlackClock "0:01:10"]

1. e4 {[%clk 0:03:00]}  c5 {[%clk 0:02:58]} 2. c3 {[%clk 0:02:59]}  Qa5 {[%clk 0:02:57]} 3. Na3 {[%clk 0:02:57]}  a6 {[%clk 0:02:57]} 4. d4 {[%clk 0:02:54]}  cxd4 {[%clk 0:02:56]} 5. Nc4 {[%clk 0:02:54]}  Qc7 {[%clk 0:02:53]} 6. cxd4 {[%clk 0:02:53]}  b5 {[%clk 0:02:53]} 7. Ne3 {[%clk 0:02:52]}  Bb7 {[%clk 0:02:53]} 8. Bd3 {[%clk 0:02:49]}  Nf6 {[%clk 0:02:51]} 9. d5 {[%clk 0:02:43]}  e6 {[%clk 0:02:48]} 10. dxe6 {[%clk 0:02:34]}  dxe6 {[%clk 0:02:48]} 11. f3 {[%clk 0:02:33]}  Bb4+ {[%clk 0:02:47]} 12. Bd2 {[%clk 0:02:33]}  Bxd2+ {[%clk 0:02:46]} 13. Qxd2 {[%clk 0:02:33]}  O-O {[%clk 0:02:45]} 14. Ne2 {[%clk 0:02:32]}  Rd8 {[%clk 0:02:44]} 15. O-O {[%clk 0:02:32]}  Nbd7 {[%clk 0:02:42]} 16. Rac1 {[%clk 0:02:30]}  Qb6 {[%clk 0:02:42]} 17. a3 {[%clk 0:01:41]}  Ne5 {[%clk 0:02:40]} 18. Rc3 {[%clk 0:01:40]}  Bxe4 {[%clk 0:02:20]} 19. fxe4 {[%clk 0:01:22]}  Nxe4 {[%clk 0:02:20]} 20. Qc1 {[%clk 0:01:23]}  Nxd3 {[%clk 0:02:09]} 21. Rxd3 {[%clk 0:01:12]}  Rxd3 {[%clk 0:02:10]} 22. Rf3 {[%clk 0:01:11]}  Rad8 {[%clk 0:01:51]} 23. Kh1 {[%clk 0:00:57]}  Rxe3 {[%clk 0:01:42]} 24. Rxe3 {[%clk 0:00:51]}  Rd1+ {[%clk 0:01:15]} 25. Qxd1 {[%clk 0:00:48]}  Nf2+ {[%clk 0:01:16]} 26. Kg1 {[%clk 0:00:49]}  Nxd1 {[%clk 0:01:16]} 27. Kf1 {[%clk 0:00:34]}  Nxe3+ {[%clk 0:01:15]} 28. Ke1 {[%clk 0:00:35]}  Nxg2+ {[%clk 0:01:12]} 29. Kd1 {[%clk 0:00:35]}  Nh4 {[%clk 0:01:11]} 30. Nc3 {[%clk 0:00:36]}  Nf3 {[%clk 0:01:11]} 31. Ke2 {[%clk 0:00:37]}  Nxh2 {[%clk 0:01:10]} 32. Kd3 {[%clk 0:00:37]}  a5 {[%clk 0:01:10]} 33. Ke4 {[%clk 0:00:38]}  b4 {[%clk 0:01:10]} 34. axb4 {[%clk 0:00:39]}  axb4 {[%clk 0:01:09]} 35. Ne2 {[%clk 0:00:39]}  f6 {[%clk 0:01:01]} 36. Nd4 {[%clk 0:00:40]}  Qb7+ {[%clk 0:01:01]} 37. Kd3 {[%clk 0:00:39]}  Ng4 {[%clk 0:01:01]} 38. Ne2 {[%clk 0:00:35]}  Qd5+ {[%clk 0:01:01]} 39. Kc2 {[%clk 0:00:33]}  Qe4+ {[%clk 0:01:00]} 40. Kd2 {[%clk 0:00:33]}  Ne5 {[%clk 0:01:01]} 41. b3 {[%clk 0:00:30]}  Nc4+ {[%clk 0:01:00]} 42. bxc4 {[%clk 0:00:22]}  Qxc4 {[%clk 0:01:01]} 43. Nc1 {[%clk 0:00:15]}  Qxc1+ {[%clk 0:01:01]} 44. Ke2 {[%clk 0:00:14]}  e5 {[%clk 0:01:01]} 45. Kf3 {[%clk 0:00:15]}  Qc3+ {[%clk 0:01:01]} 46. Ke4 {[%clk 0:00:15]}  Qd4+ {[%clk 0:01:02]} 47. Kf5 {[%clk 0:00:16]}  Qf4+ {[%clk 0:01:02]} 48. Ke6 {[%clk 0:00:17]}  Qg4+ {[%clk 0:01:02]} 49. Ke7 {[%clk 0:00:17]}  e4 {[%clk 0:01:01]} 50. Ke8 {[%clk 0:00:17]}  Qc8+ {[%clk 0:01:00]} 51. Ke7 {[%clk 0:00:18]}  Qd7+ {[%clk 0:01:01]} 52. Kxd7 {[%clk 0:00:17]}  e3 {[%clk 0:01:01]} 53. Ke6 {[%clk 0:00:18]}  b3 {[%clk 0:01:02]} 54. Kf5 {[%clk 0:00:19]}  b2 {[%clk 0:01:02]} 55. Kf4 {[%clk 0:00:20]}  e2 {[%clk 0:01:02]} 56. Kf5 {[%clk 0:00:20]}  e1=N {[%clk 0:01:01]} 57. Kf4 {[%clk 0:00:21]}  b1=N {[%clk 0:01:00]} 58. Kf5 {[%clk 0:00:21]}  Kf7 {[%clk 0:01:00]} 59. Kf4 {[%clk 0:00:22]}  g6 {[%clk 0:01:01]} 60. Ke3 {[%clk 0:00:23]}  h6 {[%clk 0:01:02]} 61. Ke2 {[%clk 0:00:23]}  h5 {[%clk 0:01:02]} 62. Kxe1 {[%clk 0:00:24]}  g5 {[%clk 0:01:02]} 63. Kf2 {[%clk 0:00:24]}  Kg6 {[%clk 0:01:03]} 64. Kg3 {[%clk 0:00:25]}  Nd2 {[%clk 0:01:03]} 65. Kf2 {[%clk 0:00:25]}  Nf1 {[%clk 0:01:04]} 66. Kxf1 {[%clk 0:00:25]}  f5 {[%clk 0:01:05]} 67. Kg2 {[%clk 0:00:26]}  Kf6 {[%clk 0:01:05]} 68. Kg3 {[%clk 0:00:27]}  Ke5 {[%clk 0:01:06]} 69. Kf3 {[%clk 0:00:28]}  Ke6 {[%clk 0:01:06]} 70. Ke3 {[%clk 0:00:28]}  Kf6 {[%clk 0:01:07]} 71. Kf3 {[%clk 0:00:29]}  Kg7 {[%clk 0:01:07]} 72. Ke3 {[%clk 0:00:30]}  Kh6 {[%clk 0:01:08]} 73. Kf3 {[%clk 0:00:30]}  h4 {[%clk 0:01:09]} 74. Kg2 {[%clk 0:00:30]}  Kg6 {[%clk 0:01:10]} 75. Kh3 {[%clk 0:00:31]}  Kf6 {[%clk 0:01:10]} 76. Kg2 {[%clk 0:00:32]}  Ke6 {[%clk 0:01:11]} 77. Kh3 {[%clk 0:00:33]}  Kd6 {[%clk 0:01:12]} 78. Kg2 {[%clk 0:00:34]}  Kc6 {[%clk 0:01:13]} 79. Kh3 {[%clk 0:00:35]}  Kb6 {[%clk 0:01:13]} 80. Kg2 {[%clk 0:00:36]}  Ka6 {[%clk 0:01:14]} 81. Kh3 {[%clk 0:00:36]}  Ka7 {[%clk 0:01:14]} 82. Kg2 {[%clk 0:00:37]}  Kb7 {[%clk 0:01:15]} 83. Kh3 {[%clk 0:00:38]}  Kc7 {[%clk 0:01:16]} 84. Kg2 {[%clk 0:00:39]}  Kd7 {[%clk 0:01:17]} 85. Kh3 {[%clk 0:00:40]}  Ke7 {[%clk 0:01:17]} 86. Kg2 {[%clk 0:00:41]}  Kf7 {[%clk 0:01:18]} 87. Kh3 {[%clk 0:00:42]}  Kg7 {[%clk 0:01:19]} 88. Kg2 {[%clk 0:00:43]}  Kh7 {[%clk 0:01:20]} 89. Kh3 {[%clk 0:00:44]}  Kh8 {[%clk 0:01:20]} 90. Kg2 {[%clk 0:00:45]}  Kg8 {[%clk 0:01:21]} 91. Kh3 {[%clk 0:00:45]}  Kf8 {[%clk 0:01:22]} 92. Kg2 {[%clk 0:00:46]}  Ke8 {[%clk 0:01:23]} 93. Kh3 {[%clk 0:00:47]}  Kd8 {[%clk 0:01:23]} 94. Kg2 {[%clk 0:00:48]}  Kc8 {[%clk 0:01:24]} 95. Kh3 {[%clk 0:00:49]}  Kb8 {[%clk 0:01:25]} 96. Kg2 {[%clk 0:00:50]}  Ka8 {[%clk 0:01:25]} 97. Kh3 {[%clk 0:00:51]}  Kb7 {[%clk 0:01:23]} 98. Kg2 {[%clk 0:00:51]}  g4 {[%clk 0:01:24]} 99. Kf2 {[%clk 0:00:51]}  Kc6 {[%clk 0:01:24]} 100. Ke3 {[%clk 0:00:52]}  Kd6 {[%clk 0:01:25]} 101. Kf4 {[%clk 0:00:52]}  Ke6 {[%clk 0:01:26]} 102. Kg5 {[%clk 0:00:52]}  Ke5 {[%clk 0:01:25]} 103. Kxh4 {[%clk 0:00:52]}  Kf4 {[%clk 0:01:21]} 104. Kh5 {[%clk 0:00:52]}  g3 {[%clk 0:01:21]} 105. Kh4 {[%clk 0:00:52]}  g2 {[%clk 0:01:20]} 106. Kh3 {[%clk 0:00:53]}  g1=R {[%clk 0:01:20]} 107. Kh2 {[%clk 0:00:53]}  Rg8 {[%clk 0:01:19]} 108. Kh3 {[%clk 0:00:54]}  Rg7 {[%clk 0:01:18]} 109. Kh2 {[%clk 0:00:45]}  Kf3 {[%clk 0:01:18]} 110. Kh1 {[%clk 0:00:43]}  f4 {[%clk 0:01:10]} 111. Kh2 {[%clk 0:00:42]}  Rg8 {[%clk 0:01:10]} 112. Kh1 {[%clk 0:00:42]}  Kf2 {[%clk 0:01:10]} 113. Kh2 {[%clk 0:00:42]}  Rh8# {[%clk 0:01:10]} 0-1

[Event "December 12 Late 2023"]
[Site "https://www.chess.com"]
[Date "2023.12.12"]
[Round "1"]
[White "Manfroi, Alexander Giannini"]
[Black "Filgueira, Hernan"]
[Result "0-1"]
[Board "136"]
[TimeControl "180+1"]
[WhiteFideId "22739335"]
[BlackFideId "101770"]
[WhiteElo "2202"]
[BlackElo "2561"]
[WhiteTeam "BRA"]
[BlackTeam "ARG"]
[WhiteClock "0:00:33"]
[BlackClock "0:01:38"]

1. d4 {[%clk 0:03:00]}  d6 {[%clk 0:02:58]} 2. Bf4 {[%clk 0:03:00]}  f5 {[%clk 0:02:58]} 3. Nc3 {[%clk 0:03:00]}  Nf6 {[%clk 0:02:59]} 4. e4 {[%clk 0:02:59]}  fxe4 {[%clk 0:02:58]} 5. f3 {[%clk 0:02:59]}  e3 {[%clk 0:02:58]} 6. Bxe3 {[%clk 0:02:58]}  c6 {[%clk 0:02:58]} 7. f4 {[%clk 0:02:58]}  Qa5 {[%clk 0:02:57]} 8. Bd3 {[%clk 0:02:54]}  g6 {[%clk 0:02:53]} 9. Ne2 {[%clk 0:02:54]}  Bg7 {[%clk 0:02:52]} 10. O-O {[%clk 0:02:55]}  O-O {[%clk 0:02:52]} 11. Rb1 {[%clk 0:02:49]}  Na6 {[%clk 0:02:45]} 12. Bc4+ {[%clk 0:02:42]}  d5 {[%clk 0:02:43]} 13. Bxa6 {[%clk 0:02:39]}  Qxa6 {[%clk 0:02:41]} 14. Ng3 {[%clk 0:02:32]}  Ng4 {[%clk 0:02:30]} 15. Qd2 {[%clk 0:02:16]}  Qc4 {[%clk 0:02:17]} 16. b3 {[%clk 0:01:50]}  Qb4 {[%clk 0:02:17]} 17. Nxd5 {[%clk 0:01:22]}  Qxd2 {[%clk 0:02:13]} 18. Nxe7+ {[%clk 0:01:22]}  Kf7 {[%clk 0:02:13]} 19. Bxd2 {[%clk 0:01:23]}  Bxd4+ {[%clk 0:02:06]} 20. Kh1 {[%clk 0:01:21]}  Kxe7 {[%clk 0:02:06]} 21. Bb4+ {[%clk 0:01:20]}  c5 {[%clk 0:02:06]} 22. Rbe1+ {[%clk 0:01:19]}  Kf7 {[%clk 0:02:05]} 23. Ne4 {[%clk 0:01:02]}  cxb4 {[%clk 0:01:59]} 24. Ng5+ {[%clk 0:01:02]}  Kg8 {[%clk 0:01:56]} 25. h3 {[%clk 0:00:53]}  Nf6 {[%clk 0:01:43]} 26. Re7 {[%clk 0:00:33]}  Bc5 {[%clk 0:01:38]} 0-1

[Event "December 12 Late 2023"]
[Site "https://www.chess.com"]
[Date "2023.12.12"]
[Round "1"]
[White "Dragomirescu, Robin-Alexandru"]
[Black "Nadera, Barlo A."]
[Result "1-0"]
[Board "139"]
[TimeControl "180+1"]
[WhiteFideId "1213849"]
[BlackFideId "5200598"]
[WhiteElo "2553"]
[BlackElo "2174"]
[WhiteTeam "ROU"]
[BlackTeam "PHI"]
[WhiteClock "0:00:27"]
[BlackClock "0:00:00"]

1. b3 {[%clk 0:03:00]}  Nf6 {[%clk 0:02:55]} 2. Bb2 {[%clk 0:03:01]}  e6 {[%clk 0:02:54]} 3. c4 {[%clk 0:03:01]}  d5 {[%clk 0:02:54]} 4. Nf3 {[%clk 0:03:01]}  Be7 {[%clk 0:02:54]} 5. e3 {[%clk 0:03:02]}  O-O {[%clk 0:02:53]} 6. Nc3 {[%clk 0:03:01]}  b6 {[%clk 0:02:51]} 7. cxd5 {[%clk 0:02:56]}  exd5 {[%clk 0:02:40]} 8. d4 {[%clk 0:02:54]}  c5 {[%clk 0:02:29]} 9. Bd3 {[%clk 0:02:48]}  a6 {[%clk 0:02:25]} 10. O-O {[%clk 0:02:43]}  Nc6 {[%clk 0:02:20]} 11. dxc5 {[%clk 0:02:40]}  bxc5 {[%clk 0:02:19]} 12. h3 {[%clk 0:02:41]}  h6 {[%clk 0:02:18]} 13. Rc1 {[%clk 0:02:31]}  Be6 {[%clk 0:02:16]} 14. Na4 {[%clk 0:02:26]}  Nd7 {[%clk 0:02:14]} 15. Qe2 {[%clk 0:02:17]}  Nb4 {[%clk 0:02:06]} 16. Bb1 {[%clk 0:02:15]}  Nc6 {[%clk 0:02:00]} 17. Rfd1 {[%clk 0:02:11]}  Qc7 {[%clk 0:01:55]} 18. Qc2 {[%clk 0:02:06]}  g6 {[%clk 0:01:49]} 19. e4 {[%clk 0:01:29]}  Nb4 {[%clk 0:01:37]} 20. Qe2 {[%clk 0:01:25]}  Rfe8 {[%clk 0:01:33]} 21. a3 {[%clk 0:01:21]}  dxe4 {[%clk 0:01:29]} 22. Qxe4 {[%clk 0:01:12]}  Nc6 {[%clk 0:01:27]} 23. b4 {[%clk 0:00:58]}  c4 {[%clk 0:01:20]} 24. Nd4 {[%clk 0:00:54]}  Nxd4 {[%clk 0:01:15]} 25. Qxd4 {[%clk 0:00:48]}  Bf6 {[%clk 0:01:14]} 26. Qd6 {[%clk 0:00:49]}  Qxd6 {[%clk 0:01:12]} 27. Rxd6 {[%clk 0:00:50]}  Bxb2 {[%clk 0:01:11]} 28. Nxb2 {[%clk 0:00:51]}  Ne5 {[%clk 0:01:07]} 29. f4 {[%clk 0:00:49]}  Nd3 {[%clk 0:01:07]} 30. Nxd3 {[%clk 0:00:48]}  cxd3 {[%clk 0:01:06]} 31. Bxd3 {[%clk 0:00:49]}  a5 {[%clk 0:01:05]} 32. b5 {[%clk 0:00:48]}  a4 {[%clk 0:01:04]} 33. b6 {[%clk 0:00:47]}  Rab8 {[%clk 0:01:03]} 34. Bb5 {[%clk 0:00:44]}  Re7 {[%clk 0:00:59]} 35. Bxa4 {[%clk 0:00:36]}  Ra8 {[%clk 0:00:56]} 36. Bc6 {[%clk 0:00:34]}  Rxa3 {[%clk 0:00:55]} 37. b7 {[%clk 0:00:34]}  Rb3 {[%clk 0:00:55]} 38. Rd8+ {[%clk 0:00:33]}  Kg7 {[%clk 0:00:54]} 39. b8=Q {[%clk 0:00:34]}  Rxb8 {[%clk 0:00:53]} 40. Rxb8 {[%clk 0:00:35]}  Rc7 {[%clk 0:00:53]} 41. Rbb1 {[%clk 0:00:33]}  Bf5 {[%clk 0:00:51]} 42. Ra1 {[%clk 0:00:33]}  h5 {[%clk 0:00:48]} 43. Bf3 {[%clk 0:00:34]}  Rd7 {[%clk 0:00:46]} 44. Rd1 {[%clk 0:00:32]}  Rc7 {[%clk 0:00:45]} 45. g4 {[%clk 0:00:31]}  hxg4 {[%clk 0:00:44]} 46. hxg4 {[%clk 0:00:32]}  Be6 {[%clk 0:00:44]} 47. Kg2 {[%clk 0:00:33]}  Rc2+ {[%clk 0:00:42]} 48. Kg3 {[%clk 0:00:32]}  Rc3 {[%clk 0:00:42]} 49. Rac1 {[%clk 0:00:33]}  Ra3 {[%clk 0:00:41]} 50. Rd2 {[%clk 0:00:33]}  Kf6 {[%clk 0:00:33]} 51. Re1 {[%clk 0:00:32]}  Rc3 {[%clk 0:00:29]} 52. Kf2 {[%clk 0:00:32]}  Rc4 {[%clk 0:00:28]} 53. Kg3 {[%clk 0:00:28]}  Rc3 {[%clk 0:00:27]} 54. Rde2 {[%clk 0:00:28]}  Bc4 {[%clk 0:00:23]} 55. Re3 {[%clk 0:00:28]}  Rc2 {[%clk 0:00:23]} 56. g5+ {[%clk 0:00:28]}  Kg7 {[%clk 0:00:22]} 57. Re7 {[%clk 0:00:27]}  Kf8 {[%clk 0:00:20]} 58. Rc7 {[%clk 0:00:26]}  Bb3 {[%clk 0:00:18]} 59. Rxc2 {[%clk 0:00:25]}  Bxc2 {[%clk 0:00:18]} 60. Kf2 {[%clk 0:00:25]}  Bb3 {[%clk 0:00:17]} 61. Ke3 {[%clk 0:00:26]}  Be6 {[%clk 0:00:16]} 62. Kd4 {[%clk 0:00:26]}  Kg7 {[%clk 0:00:15]} 63. Ke5 {[%clk 0:00:26]}  Bb3 {[%clk 0:00:14]} 64. Rb1 {[%clk 0:00:26]}  Bc2 {[%clk 0:00:12]} 65. Rb7 {[%clk 0:00:26]}  Bf5 {[%clk 0:00:09]} 66. Bd5 {[%clk 0:00:27]}  Kf8 {[%clk 0:00:09]} 67. Rxf7+ {[%clk 0:00:27]}  Ke8 {[%clk 0:00:08]} 68. Rxf5 {[%clk 0:00:27]}  gxf5 {[%clk 0:00:00]} 69. Kf6 {[%clk 0:00:27]} 1-0

[Event "December 12 Late 2023"]
[Site "https://www.chess.com"]
[Date "2023.12.12"]
[Round "1"]
[White "Tarnowska, Aleksandra"]
[Black "Przybylski, Wojciech"]
[Result "0-1"]
[Board "142"]
[TimeControl "180+1"]
[WhiteFideId "1180967"]
[BlackFideId "1117599"]
[WhiteElo "2164"]
[BlackElo "2544"]
[WhiteTeam "POL"]
[BlackTeam "POL"]
[WhiteClock "0:00:03"]
[BlackClock "0:00:13"]

1. e4 {[%clk 0:03:00]}  e5 {[%clk 0:02:58]} 2. Nf3 {[%clk 0:03:00]}  Nc6 {[%clk 0:02:47]} 3. Bb5 {[%clk 0:02:57]}  Nf6 {[%clk 0:02:46]} 4. O-O {[%clk 0:02:54]}  Nxe4 {[%clk 0:02:45]} 5. Re1 {[%clk 0:02:54]}  Nd6 {[%clk 0:02:45]} 6. Nxe5 {[%clk 0:02:53]}  Nxe5 {[%clk 0:02:42]} 7. Rxe5+ {[%clk 0:02:49]}  Be7 {[%clk 0:02:42]} 8. Ba4 {[%clk 0:02:44]}  O-O {[%clk 0:02:40]} 9. c3 {[%clk 0:02:36]}  Bf6 {[%clk 0:02:38]} 10. Re1 {[%clk 0:02:30]}  Nf5 {[%clk 0:02:37]} 11. d4 {[%clk 0:02:24]}  d5 {[%clk 0:02:35]} 12. Na3 {[%clk 0:02:09]}  c6 {[%clk 0:02:33]} 13. Bf4 {[%clk 0:02:03]}  Nh4 {[%clk 0:02:29]} 14. Bg3 {[%clk 0:01:59]}  Bf5 {[%clk 0:02:21]} 15. Nc2 {[%clk 0:01:47]}  Be4 {[%clk 0:02:07]} 16. f3 {[%clk 0:01:45]}  Bg6 {[%clk 0:02:03]} 17. Ne3 {[%clk 0:01:44]}  Re8 {[%clk 0:01:58]} 18. Ng4 {[%clk 0:01:43]}  Bg5 {[%clk 0:01:54]} 19. Bc2 {[%clk 0:01:37]}  Nf5 {[%clk 0:01:51]} 20. Bxf5 {[%clk 0:01:33]}  Bxf5 {[%clk 0:01:50]} 21. Re2 {[%clk 0:01:10]}  h5 {[%clk 0:01:33]} 22. Ne5 {[%clk 0:00:51]}  f6 {[%clk 0:01:30]} 23. Nd3 {[%clk 0:00:49]}  Qd7 {[%clk 0:01:24]} 24. h4 {[%clk 0:00:46]}  Be3+ {[%clk 0:01:19]} 25. Kh2 {[%clk 0:00:42]}  Bh6 {[%clk 0:01:13]} 26. Nc5 {[%clk 0:00:42]}  Qf7 {[%clk 0:01:13]} 27. Qf1 {[%clk 0:00:35]}  Kh7 {[%clk 0:01:05]} 28. Rae1 {[%clk 0:00:30]}  b6 {[%clk 0:01:00]} 29. Rxe8 {[%clk 0:00:30]}  Rxe8 {[%clk 0:00:59]} 30. Rxe8 {[%clk 0:00:30]}  Qxe8 {[%clk 0:00:59]} 31. Nd3 {[%clk 0:00:30]}  Qe3 {[%clk 0:00:57]} 32. Nf2 {[%clk 0:00:28]}  Qd2 {[%clk 0:00:52]} 33. Nh3 {[%clk 0:00:17]}  Bd3 {[%clk 0:00:42]} 34. Qf2 {[%clk 0:00:16]}  Bb1 {[%clk 0:00:39]} 35. a3 {[%clk 0:00:06]}  Qxf2 {[%clk 0:00:37]} 36. Nxf2 {[%clk 0:00:03]}  Bc1 {[%clk 0:00:37]} 37. b3 {[%clk 0:00:03]}  Bxa3 {[%clk 0:00:33]} 38. c4 {[%clk 0:00:03]}  Bb2 {[%clk 0:00:31]} 39. cxd5 {[%clk 0:00:03]}  cxd5 {[%clk 0:00:31]} 40. Bb8 {[%clk 0:00:03]}  a5 {[%clk 0:00:29]} 41. Ba7 {[%clk 0:00:03]}  Bxd4 {[%clk 0:00:29]} 42. Nh3 {[%clk 0:00:04]}  Be3 {[%clk 0:00:20]} 43. g3 {[%clk 0:00:01]}  Bc2 {[%clk 0:00:18]} 44. g4 {[%clk 0:00:02]}  Bxb3 {[%clk 0:00:17]} 45. gxh5 {[%clk 0:00:02]}  a4 {[%clk 0:00:18]} 46. Kg3 {[%clk 0:00:02]}  a3 {[%clk 0:00:18]} 47. Nf2 {[%clk 0:00:02]}  a2 {[%clk 0:00:15]} 48. Ng4 {[%clk 0:00:02]}  Bd4 {[%clk 0:00:14]} 49. Bb8 {[%clk 0:00:02]}  a1=Q {[%clk 0:00:13]} 50. Bf4 {[%clk 0:00:02]}  Qg1+ {[%clk 0:00:13]} 51. Kh3 {[%clk 0:00:03]}  Bc4 {[%clk 0:00:13]} 52. Bg3 {[%clk 0:00:03]}  Bf1# {[%clk 0:00:13]} 0-1

[Event "December 12 Late 2023"]
[Site "https://www.chess.com"]
[Date "2023.12.12"]
[Round "1"]
[White "Leenhouts, Koen"]
[Black "BestestBP"]
[Result "0-1"]
[Board "143"]
[TimeControl "180+1"]
[WhiteFideId "1008439"]
[WhiteElo "2539"]
[BlackElo "2145"]
[WhiteTeam "NED"]
[WhiteClock "0:00:02"]
[BlackClock "0:00:06"]

1. c4 {[%clk 0:02:59]}  Nf6 {[%clk 0:02:59]} 2. Nc3 {[%clk 0:02:58]}  e6 {[%clk 0:03:00]} 3. g3 {[%clk 0:02:57]}  d5 {[%clk 0:02:59]} 4. cxd5 {[%clk 0:02:57]}  exd5 {[%clk 0:02:56]} 5. d3 {[%clk 0:02:56]}  Be7 {[%clk 0:02:56]} 6. Bg2 {[%clk 0:02:55]}  O-O {[%clk 0:02:56]} 7. Nf3 {[%clk 0:02:54]}  c6 {[%clk 0:02:57]} 8. O-O {[%clk 0:02:54]}  Nbd7 {[%clk 0:02:54]} 9. e4 {[%clk 0:02:53]}  dxe4 {[%clk 0:02:50]} 10. dxe4 {[%clk 0:02:54]}  Nc5 {[%clk 0:02:50]} 11. Qc2 {[%clk 0:02:50]}  Bg4 {[%clk 0:02:42]} 12. Be3 {[%clk 0:02:45]}  Qc7 {[%clk 0:02:34]} 13. Bf4 {[%clk 0:02:25]}  Qb6 {[%clk 0:02:32]} 14. Be3 {[%clk 0:02:23]}  Qc7 {[%clk 0:02:33]} 15. h3 {[%clk 0:02:19]}  Bh5 {[%clk 0:02:18]} 16. Nd4 {[%clk 0:02:11]}  Bg6 {[%clk 0:02:11]} 17. Rfe1 {[%clk 0:02:05]}  Rad8 {[%clk 0:02:04]} 18. Rad1 {[%clk 0:02:05]}  Rd7 {[%clk 0:01:56]} 19. Nf5 {[%clk 0:01:57]}  Bxf5 {[%clk 0:01:40]} 20. exf5 {[%clk 0:01:58]}  Rfd8 {[%clk 0:01:40]} 21. Rxd7 {[%clk 0:01:49]}  Rxd7 {[%clk 0:01:34]} 22. Bf4 {[%clk 0:01:36]}  Qd8 {[%clk 0:01:31]} 23. Bf1 {[%clk 0:01:31]}  h6 {[%clk 0:01:22]} 24. b4 {[%clk 0:01:24]}  Nd3 {[%clk 0:01:07]} 25. Bxd3 {[%clk 0:01:23]}  Rxd3 {[%clk 0:01:08]} 26. Rxe7 {[%clk 0:01:15]}  Rxc3 {[%clk 0:01:08]} 27. Qxc3 {[%clk 0:00:50]}  Qxe7 {[%clk 0:01:08]} 28. Qd4 {[%clk 0:00:48]}  Nd5 {[%clk 0:01:00]} 29. Bd2 {[%clk 0:00:40]}  a6 {[%clk 0:00:32]} 30. Bc3 {[%clk 0:00:31]}  Nxc3 {[%clk 0:00:30]} 31. Qxc3 {[%clk 0:00:32]}  Qe4 {[%clk 0:00:27]} 32. f6 {[%clk 0:00:23]}  Qb1+ {[%clk 0:00:19]} 33. Kg2 {[%clk 0:00:20]}  Qe4+ {[%clk 0:00:19]} 34. Kh2 {[%clk 0:00:20]}  Qf5 {[%clk 0:00:14]} 35. Kg2 {[%clk 0:00:15]}  gxf6 {[%clk 0:00:14]} 36. Qe3 {[%clk 0:00:15]}  Qd5+ {[%clk 0:00:14]} 37. Kh2 {[%clk 0:00:14]}  Qg5 {[%clk 0:00:14]} 38. Qb6 {[%clk 0:00:11]}  Qb5 {[%clk 0:00:11]} 39. Qd4 {[%clk 0:00:11]}  Qe5 {[%clk 0:00:10]} 40. Qd2 {[%clk 0:00:08]}  Qf5 {[%clk 0:00:10]} 41. Kg1 {[%clk 0:00:05]}  Qb1+ {[%clk 0:00:09]} 42. Kg2 {[%clk 0:00:06]}  Qe4+ {[%clk 0:00:09]} 43. Kh2 {[%clk 0:00:06]}  Qf5 {[%clk 0:00:09]} 44. a3 {[%clk 0:00:07]}  Kg7 {[%clk 0:00:09]} 45. Qd4 {[%clk 0:00:06]}  Qd5 {[%clk 0:00:09]} 46. Qg4+ {[%clk 0:00:05]}  Qg5 {[%clk 0:00:09]} 47. Qd4 {[%clk 0:00:05]}  Qf5 {[%clk 0:00:08]} 48. h4 {[%clk 0:00:04]}  h5 {[%clk 0:00:08]} 49. Qe3 {[%clk 0:00:04]}  Qg4 {[%clk 0:00:08]} 50. Qd2 {[%clk 0:00:04]}  Qf5 {[%clk 0:00:08]} 51. Qe3 {[%clk 0:00:04]}  Qg4 {[%clk 0:00:08]} 52. Qd2 {[%clk 0:00:04]}  Qf3 {[%clk 0:00:09]} 53. Kg1 {[%clk 0:00:05]}  Qxa3 {[%clk 0:00:09]} 54. Qd4 {[%clk 0:00:04]}  Qf3 {[%clk 0:00:09]} 55. Kh2 {[%clk 0:00:04]}  Qf5 {[%clk 0:00:08]} 56. Qb6 {[%clk 0:00:04]}  Qf3 {[%clk 0:00:08]} 57. Kg1 {[%clk 0:00:03]}  Qd1+ {[%clk 0:00:08]} 58. Kg2 {[%clk 0:00:04]}  Qd5+ {[%clk 0:00:08]} 59. Kg1 {[%clk 0:00:04]}  Qb5 {[%clk 0:00:09]} 60. Qd4 {[%clk 0:00:04]}  Qf5 {[%clk 0:00:09]} 61. Qb6 {[%clk 0:00:04]}  Qb5 {[%clk 0:00:09]} 62. Qd4 {[%clk 0:00:04]}  a5 {[%clk 0:00:09]} 63. bxa5 {[%clk 0:00:04]}  Qxa5 {[%clk 0:00:10]} 64. Qd1 {[%clk 0:00:04]}  Qf5 {[%clk 0:00:10]} 65. Qb3 {[%clk 0:00:04]}  b5 {[%clk 0:00:10]} 66. Kg2 {[%clk 0:00:04]}  Qd5+ {[%clk 0:00:08]} 67. Qxd5 {[%clk 0:00:04]}  cxd5 {[%clk 0:00:09]} 68. Kf3 {[%clk 0:00:04]}  f5 {[%clk 0:00:09]} 69. Ke3 {[%clk 0:00:05]}  Kf6 {[%clk 0:00:09]} 70. Kd4 {[%clk 0:00:06]}  Ke6 {[%clk 0:00:10]} 71. f3 {[%clk 0:00:04]}  f4 {[%clk 0:00:06]} 72. gxf4 {[%clk 0:00:04]}  Kf5 {[%clk 0:00:06]} 73. Kxd5 {[%clk 0:00:04]}  Kxf4 {[%clk 0:00:06]} 74. Kc5 {[%clk 0:00:04]}  Kxf3 {[%clk 0:00:07]} 75. Kxb5 {[%clk 0:00:05]}  f5 {[%clk 0:00:07]} 76. Kc5 {[%clk 0:00:02]}  Ke3 {[%clk 0:00:06]} 0-1